fUST/lending_fUST_20260127
["ID","MTS","AMOUNT","RATE_DAILY","PERIOD"]
[403729131,1769513439362,-500.0,0.00013136,2]
[403729132,1769513439371,-150.0,0.00013136,2]
[403729133,1769513439379,-500.0,0.00013136,2]
[403729134,1769513439389,-500.0,0.00013136,2]
[403729135,1769513439409,-276.75967829,0.00013136,2]
[403729136,1769513439425,-500.0,0.00013136,2]
[403729137,1769513439434,-500.0,0.00013136,2]
[403729138,1769513439443,-500.0,0.00013136,2]
[403729139,1769513439452,-720.0,0.00013168,2]
[403729140,1769513439462,-151.0,0.000132,2]
[403729141,1769513439472,-500.23170738,0.00013273,2]
[403729142,1769513439481,-500.0,0.00013273,2]
[403729143,1769513439490,-500.0,0.00013273,2]
[403729144,1769513439499,-500.0,0.00013273,2]
[403729145,1769513439507,-500.0,0.00013273,2]
[403729146,1769513439518,-522.6486575,0.00013273,2]
[403729147,1769513439527,-500.0,0.00013273,2]
[403729148,1769513439536,-500.0,0.00013273,2]
[403729149,1769513439545,-500.0,0.00013273,2]
[403729150,1769513439554,-284.04326702,0.00013273,2]
[403729151,1769513439563,-264.83719499,0.00013273,2]
[403729152,1769513439572,-500.0,0.00013273,2]
[403729153,1769513439582,-500.0,0.00013273,2]
[403729154,1769513439591,-500.0,0.00013273,2]
[403729155,1769513439600,-500.0,0.00013273,2]
[403729156,1769513439609,-500.0,0.00013273,2]
[403729157,1769513439619,-500.0,0.00013273,2]
[403729158,1769513439631,-500.0,0.00013273,2]
[403729159,1769513439640,-500.0,0.00013273,2]
[403729160,1769513439650,-500.0,0.00013273,2]
[403729161,1769513439660,-500.0,0.00013273,2]
[403729162,1769513439670,-500.0,0.00013273,2]
[403729163,1769513439678,-500.0,0.00013273,2]
[403729164,1769513439688,-500.0,0.00013273,2]
[403729165,1769513439698,-500.0,0.00013273,2]
[403729166,1769513439707,-500.0,0.00013273,2]
[403729167,1769513439717,-500.0,0.00013273,2]
[403729168,1769513439728,-500.0,0.00013273,2]
[403729169,1769513439737,-500.0,0.00013273,2]
[403729170,1769513439747,-500.0,0.00013273,2]
[403729171,1769513439755,-500.0,0.00013273,2]
[403729172,1769513439764,-500.0,0.00013273,2]
[403729173,1769513439924,-302.08825533,0.00013273,2]
[403729174,1769513439935,-500.0,0.00013273,2]
[403729175,1769513439944,-500.0,0.00013273,2]
[403729176,1769513439953,-500.0,0.00013273,2]
[403729177,1769513439962,-500.0,0.00013273,2]
[403729178,1769513439972,-500.0,0.00013273,2]
[403729179,1769513439981,-500.0,0.00013273,2]
[403729180,1769513439991,-500.0,0.00013273,2]
[403729181,1769513440000,-500.0,0.00013273,2]
[403729182,1769513440010,-500.0,0.00013273,2]
[403729183,1769513440020,-226.04161405,0.00013273,2]
[403729184,1769513440030,-261.99881114,0.00013273,2]
[403729185,1769513440040,-500.0,0.00013273,2]
[403729186,1769513440051,-500.0,0.00013273,2]
[403729187,1769513440060,-500.0,0.00013273,2]
[403729188,1769513440069,-500.0,0.00013273,2]
[403729189,1769513440080,-500.0,0.00013273,2]
[403729190,1769513440096,-500.0,0.00013273,2]
[403729191,1769513440106,-500.0,0.00013273,2]
[403729192,1769513440115,-286.50377606,0.00013273,2]
[403729194,1769513440124,-242.45970376,0.00013273,2]
[403729196,1769513440141,-500.0,0.00013273,2]
[403729198,1769513440153,-150.0,0.00013273,2]
[403729200,1769513440164,-500.0,0.00013273,2]
[403729203,1769513440174,-500.0,0.00013273,2]
[403729206,1769513440185,-500.0,0.00013273,2]
[403729208,1769513440195,-500.0,0.00013273,2]
[403729210,1769513440203,-500.0,0.00013273,2]
[403729212,1769513440216,-277.75900017,0.00013273,2]
[403729214,1769513440225,-151.0,0.000133,2]
[403729216,1769513440234,-2436.79107371,0.00013316,2]
[403729218,1769513440243,-150.0,0.00013323,2]
[403729220,1769513440252,-500.0,0.0001338,2]
[403729222,1769513440261,-449.64993017,0.00013389,2]
[403729224,1769513440270,-500.0,0.0001341,2]
[403729226,1769513440279,-500.0,0.0001341,2]
[403729228,1769513440288,-300.81623099,0.0001341,2]
[403729230,1769513440296,-150.0,0.0001341,2]
[403729232,1769513440305,-500.0,0.0001341,2]
[403729234,1769513440315,-223.92590858,0.0001341,2]
[403729236,1769513440324,-637.45973716,0.0001341,2]
[403729238,1769513440333,-500.0,0.0001341,2]
[403729240,1769513440342,-500.0,0.0001341,2]
[403729242,1769513440356,-202.55847366,0.0001346,2]
[403729244,1769513440365,-151.0,0.000135,2]
[403729246,1769513440375,-500.0,0.00013547,2]
[403729248,1769513440383,-500.0,0.00013547,2]
[403729250,1769513440393,-272.70372137,0.00013547,2]
[403729252,1769513440402,-500.0,0.00013547,2]
[403729254,1769513440411,-500.0,0.00013547,2]
[403729256,1769513440420,-500.0,0.00013547,2]
[403729258,1769513440429,-487.0,0.00013598,2]
[403729260,1769513440438,-487.0,0.00013598,2]
[403729262,1769513440447,-487.0,0.00013598,2]
[403729264,1769513440456,-487.0,0.00013598,2]
[403729266,1769513440465,-487.0,0.00013598,2]
[403729268,1769513440475,-487.0,0.00013598,2]
[403729270,1769513440484,-487.0,0.00013598,2]
[403729272,1769513440493,-954.64,0.00013598,2]
[403729274,1769513440503,-151.0,0.000136,2]
[403729277,1769513440512,-500.0,0.00013654,2]
[403729279,1769513440523,-201.23226476,0.00013673,2]
[403729280,1769513440532,-300.0,0.00013673,2]
[403729283,1769513440541,-500.0,0.00013684,2]
[403729285,1769513440551,-500.0,0.00013684,2]
[403729286,1769513440560,-500.0,0.00013684,2]
[403729288,1769513440569,-500.0,0.00013684,2]
[403729290,1769513440578,-500.0,0.00013684,2]
[403729292,1769513440587,-500.0,0.00013698,2]
[403729294,1769513440596,-500.0,0.00013698,2]
[403729296,1769513440605,-500.0,0.00013698,2]
[403729298,1769513440614,-500.0,0.00013698,2]
[403729300,1769513440623,-500.0,0.00013698,2]
[403729302,1769513440632,-500.0,0.00013698,2]
[403729304,1769513440641,-500.0,0.00013698,2]
[403729306,1769513440650,-500.0,0.00013698,2]
[403729308,1769513440660,-500.0,0.00013698,2]
[403729310,1769513440669,-500.0,0.00013698,2]
[403729312,1769513440678,-500.0,0.00013698,2]
[403729315,1769513440687,-500.0,0.00013698,2]
[403729317,1769513440696,-500.0,0.00013698,2]
[403729320,1769513440705,-500.0,0.00013698,2]
[403729323,1769513440714,-500.0,0.00013698,2]
[403729325,1769513440722,-500.0,0.00013698,2]
[403729327,1769513440731,-500.0,0.00013698,2]
[403729329,1769513440740,-500.0,0.00013698,2]
[403729331,1769513440748,-500.0,0.00013698,2]
[403729333,1769513440757,-500.0,0.00013698,2]
[403729335,1769513440766,-500.0,0.00013698,2]
[403729337,1769513440775,-500.0,0.00013698,2]
[403729339,1769513440784,-500.0,0.00013698,2]
[403729341,1769513440793,-500.0,0.00013698,2]
[403729343,1769513440802,-500.0,0.00013698,2]
[403729345,1769513440811,-625.53895827,0.00013698,2]
[403729347,1769513440820,-500.0,0.00013698,2]
[403729350,1769513440830,-500.0,0.00013698,2]
[403729352,1769513440839,-500.0,0.00013698,2]
[403729354,1769513440848,-186.52448351,0.00013698,2]
[403729355,1769513440857,-500.0,0.00013698,2]
[403729357,1769513440867,-500.0,0.00013698,2]
[403729360,1769513440877,-500.0,0.00013698,2]
[403729361,1769513440886,-500.0,0.00013698,2]
[403729363,1769513440895,-500.0,0.00013698,2]
[403729365,1769513440904,-500.0,0.00013698,2]
[403729367,1769513440913,-244.05,0.00013698,2]
[403729369,1769513440922,-500.0,0.00013698,2]
[403729371,1769513440931,-500.0,0.00013698,2]
[403729373,1769513440940,-500.0,0.00013698,2]
[403729375,1769513440949,-500.0,0.00013698,2]
[403729377,1769513440958,-1000.0,0.00013698,2]
[403729379,1769513440967,-1000.0,0.00013698,2]
[403729381,1769513440976,-1000.0,0.00013698,2]
[403729383,1769513440985,-1000.0,0.00013698,2]
[403729385,1769513440994,-1000.0,0.00013698,2]
[403729387,1769513441003,-941.13251238,0.00013698,2]
[403729389,1769513441012,-500.0,0.00013698,2]
[403729391,1769513441022,-500.0,0.00013698,2]
[403729393,1769513441031,-500.0,0.00013698,2]
[403729395,1769513441040,-500.0,0.00013698,2]
[403729397,1769513441049,-500.0,0.00013698,2]
[403729399,1769513441058,-500.0,0.00013698,2]
[403729401,1769513441067,-500.0,0.00013698,2]
[403729403,1769513441076,-500.0,0.00013698,2]
[403729405,1769513441085,-500.0,0.00013698,2]
[403729407,1769513441094,-500.0,0.00013698,2]
[403729409,1769513441103,-500.0,0.00013698,2]
[403729411,1769513441113,-500.0,0.00013698,2]
[403729413,1769513441122,-1000.0,0.00013698,2]
[403729415,1769513441133,-580.78992406,0.00013698,2]
[403729417,1769513441147,-515.45788341,0.00013698,2]
[403729420,1769513441156,-160.26500187,0.00013699,2]
[403729421,1769513441165,-500.0,0.00013699,2]
[403729423,1769513441175,-500.0,0.00013699,2]
[403729425,1769513441184,-500.0,0.00013699,2]
[403729427,1769513441193,-500.0,0.00013699,2]
[403729429,1769513441204,-500.0,0.00013699,2]
[403729431,1769513441213,-160.25817065,0.00013699,2]
[403729433,1769513441222,-500.0,0.00013699,2]
[403729436,1769513441231,-500.0,0.00013699,2]
[403729437,1769513441240,-500.0,0.00013699,2]
[403729440,1769513441249,-160.67610577,0.00013699,2]
[403729441,1769513441258,-500.0,0.00013699,2]
[403729443,1769513441267,-500.0,0.00013699,2]
[403729445,1769513441276,-500.0,0.00013699,2]
[403729447,1769513441285,-507.6640978,0.00013699,2]
[403729449,1769513441294,-160.98586548,0.00013699,2]
[403729451,1769513441303,-500.0,0.00013699,2]
[403729453,1769513441312,-500.0,0.00013699,2]
[403729455,1769513441321,-500.0,0.00013699,2]
[403729457,1769513441330,-500.81049976,0.00013699,2]
[403729459,1769513441339,-500.65001385,0.00013699,2]
[403729461,1769513441348,-462.16420988,0.00013699,2]
[403729463,1769513441357,-500.0,0.00013699,2]
[403729465,1769513441366,-612.89276168,0.00013699,2]
[403729467,1769513441375,-302.32459409,0.00013699,2]
[403729469,1769513441384,-500.0,0.00013699,2]
[403729471,1769513441393,-567.35253141,0.00013699,2]
[403729473,1769513441402,-158.80345848,0.00013699,2]
[403729475,1769513441411,-500.0,0.00013699,2]
[403729477,1769513441420,-500.0,0.00013699,2]
[403729479,1769513441429,-500.69178235,0.00013699,2]
[403729481,1769513441438,-500.51551222,0.00013699,2]
[403729483,1769513441447,-500.0,0.00013699,2]
[403729485,1769513441456,-500.0,0.00013699,2]
[403729487,1769513441465,-500.0,0.00013699,2]
[403729489,1769513441474,-500.0,0.00013699,2]
[403729491,1769513441483,-500.0,0.00013699,2]
[403729493,1769513441492,-500.2910062,0.00013699,2]
[403729495,1769513441501,-500.0,0.00013699,2]
[403729497,1769513441510,-500.2256561,0.00013699,2]
[403729499,1769513441520,-220.8942339,0.00013699,2]
[403729501,1769513441529,-500.74038109,0.00013699,2]
[403729503,1769513441537,-507.15850376,0.00013699,2]
[403729505,1769513441546,-500.6948387,0.00013699,2]
[403729507,1769513441555,-165.58700471,0.00013699,2]
[403729509,1769513441564,-500.0,0.00013699,2]
[403729511,1769513441573,-500.0,0.00013699,2]
[403729513,1769513441582,-500.0,0.00013699,2]
[403729515,1769513441590,-500.0,0.00013699,2]
[403729517,1769513441599,-400.38622524,0.00013699,2]
[403729519,1769513441608,-500.0,0.00013699,2]
[403729521,1769513441617,-500.0,0.00013699,2]
[403729522,1769513441625,-500.0,0.00013699,2]
[403729523,1769513441634,-500.0,0.00013699,2]
[403729524,1769513441643,-158.1763277,0.00013699,2]
[403729525,1769513441651,-500.0,0.00013699,2]
[403729526,1769513441659,-500.0,0.00013699,2]
[403729527,1769513441668,-194.72932748,0.00013699,2]
[403729528,1769513441676,-500.0,0.00013699,2]
[403729529,1769513441685,-158.03248936,0.00013699,2]
[403729530,1769513441694,-500.0,0.00013699,2]
[403729531,1769513441703,-500.0,0.00013699,2]
[403729532,1769513441711,-526.86363123,0.00013699,2]
[403729533,1769513441720,-536.5376944,0.00013699,2]
[403729534,1769513441728,-308.60459309,0.00013699,2]
[403729535,1769513441737,-500.0,0.00013699,2]
[403729536,1769513441746,-500.36944659,0.00013699,2]
[403729537,1769513441754,-152.58064698,0.00013699,2]
[403729538,1769513441763,-525.37478737,0.00013699,2]
[403729539,1769513441771,-500.0,0.00013699,2]
[403729540,1769513441779,-173.92029318,0.00013699,2]
[403729541,1769513441788,-500.0,0.00013699,2]
[403729542,1769513441796,-164.19123008,0.00013699,2]
[403729543,1769513441805,-500.0,0.00013699,2]
[403729544,1769513441814,-160.20285304,0.00013699,2]
[403729545,1769513441823,-502.14185001,0.00013699,2]
[403729546,1769513441831,-501.93006265,0.00013699,2]
[403729547,1769513441839,-500.56709487,0.00013699,2]
[403729548,1769513441848,-526.45505483,0.00013699,2]
[403729549,1769513441857,-299.9295039,0.00013699,2]
[403729550,1769513441865,-500.0,0.00013699,2]
[403729551,1769513441875,-500.24926867,0.00013699,2]
[403729552,1769513441883,-158.38045043,0.00013699,2]
[403729553,1769513441892,-500.0,0.00013699,2]
[403729554,1769513441901,-500.0,0.00013699,2]
[403729555,1769513441910,-500.0,0.00013699,2]
[403729556,1769513441919,-500.0,0.00013699,2]
[403729558,1769513441927,-500.0,0.00013699,2]
[403729560,1769513441936,-500.18246026,0.00013699,2]
[403729562,1769513441945,-500.0,0.00013699,2]
[403729564,1769513441955,-500.0,0.00013699,2]
[403729566,1769513441963,-500.33960277,0.00013699,2]
[403729568,1769513441972,-500.74660917,0.00013699,2]
[403729570,1769513441981,-500.71917519,0.00013699,2]
[403729572,1769513441991,-638.73037181,0.00013699,2]
[403729574,1769513442000,-500.0,0.00013699,2]
[403729576,1769513442009,-158.6253408,0.00013699,2]
[403729578,1769513442018,-500.0,0.00013699,2]
[403729580,1769513442028,-301.32592677,0.00013699,2]
[403729582,1769513442037,-500.0,0.00013699,2]
[403729584,1769513442047,-158.90561139,0.00013699,2]
[403729586,1769513442056,-500.0,0.00013699,2]
[403729588,1769513442065,-500.0,0.00013699,2]
[403729590,1769513442074,-500.0,0.00013699,2]
[403729593,1769513442083,-500.0,0.00013699,2]
[403729595,1769513442092,-179.77984522,0.00013699,2]
[403729597,1769513442101,-151.0,0.000137,2]
[403729598,1769513442110,-1000.0,0.00013821,2]
[403729600,1769513442120,-1000.0,0.00013821,2]
[403729602,1769513442128,-181.63235792,0.00013821,2]
[403729604,1769513442143,-1000.0,0.00013821,2]
[403729606,1769513442152,-1000.0,0.00013821,2]
[403729608,1769513442161,-964.54701019,0.00013821,2]
[403729610,1769513442171,-502.68815338,0.00013821,2]
[403729612,1769513442182,-1000.0,0.00013821,2]
[403729614,1769513442191,-1000.0,0.00013821,2]
[403729616,1769513442199,-500.0,0.00013821,2]
[403729618,1769513442210,-500.0,0.00013821,2]
[403729620,1769513442218,-923.7392581,0.00013821,2]
[403729622,1769513442227,-1000.0,0.00013821,2]
[403729624,1769513442236,-1000.0,0.00013821,2]
[403729626,1769513442244,-1000.0,0.00013821,2]
[403729628,1769513442253,-651.77389591,0.00013821,2]
[403729630,1769513442262,-1000.0,0.00013821,2]
[403729632,1769513442270,-1000.0,0.00013821,2]
[403729634,1769513442280,-1000.0,0.00013821,2]
[403729636,1769513442290,-1000.0,0.00013821,2]
[403729638,1769513442299,-1000.0,0.00013821,2]
[403729640,1769513442309,-1000.0,0.00013821,2]
[403729642,1769513442319,-500.0,0.00013821,2]
[403729644,1769513442327,-511.32015771,0.00013821,2]
[403729646,1769513442336,-500.0,0.00013821,2]
[403729648,1769513442345,-500.0,0.00013821,2]
[403729650,1769513442354,-151.0,0.000139,2]
[403729652,1769513442363,-151.0,0.000139,2]
[403729654,1769513442372,-500.0,0.00013928,2]
[403729656,1769513442384,-500.0,0.00013958,2]
[403729658,1769513442392,-500.0,0.00013958,2]
[403729660,1769513442402,-500.0,0.00013958,2]
[403729662,1769513442411,-1380.4270853,0.00013961,2]
[403729664,1769513442420,-172.3448985,0.00013995,2]
[403729666,1769513442429,-7156.93950253,0.00014,2]
[403729668,1769513442438,-51342.99260131,0.00014006,2]
[403729670,1769513442448,-500.0,0.00014095,2]
[403729672,1769513442457,-500.0,0.00014095,2]
[403729674,1769513442466,-151.0,0.000141,2]
[403729676,1769513442476,-587.0,0.00014151,2]
[403729678,1769513442485,-1147.0,0.000142,2]
[403729680,1769513442494,-500.0,0.00014202,2]
[403729682,1769513442503,-600.0,0.00014221,2]
[403729684,1769513442513,-500.0,0.00014232,2]
[403729686,1769513442522,-500.0,0.00014232,2]
[403729688,1769513442532,-500.0,0.00014232,2]
[403729690,1769513442541,-500.0,0.00014246,2]
[403729692,1769513442549,-500.0,0.00014246,2]
[403729694,1769513442558,-500.0,0.00014246,2]
[403729696,1769513442567,-1000.0,0.00014247,2]
[403729698,1769513442576,-344.14797869,0.00014247,2]
[403729700,1769513442585,-1000.0,0.00014247,2]
[403729702,1769513442594,-1000.0,0.00014247,2]
[403729704,1769513442603,-1000.0,0.00014247,2]
[403729706,1769513442612,-348.473489,0.00014247,2]
[403729708,1769513442621,-610.42597811,0.00014247,2]
[403729710,1769513442630,-501.05668769,0.00014247,2]
[403729712,1769513442639,-474.23438198,0.00014247,2]
[403729714,1769513442648,-1117.40899688,0.00014247,2]
[403729716,1769513442657,-500.0,0.00014247,2]
[403729718,1769513442666,-1000.0,0.00014247,2]
[403729720,1769513442675,-1000.0,0.00014247,2]
[403729722,1769513442684,-1000.0,0.00014247,2]
[403729724,1769513442693,-1001.21829847,0.00014247,2]
[403729726,1769513442702,-1000.0,0.00014247,2]
[403729728,1769513442711,-158.68078088,0.00014247,2]
[403729730,1769513442721,-1000.0,0.00014247,2]
[403729732,1769513442729,-603.02448987,0.00014247,2]
[403729734,1769513442738,-1000.89619199,0.00014247,2]
[403729736,1769513442747,-1000.0,0.00014247,2]
[403729738,1769513442757,-1000.0,0.00014247,2]
[403729740,1769513442766,-1000.0,0.00014247,2]
[403729742,1769513442775,-1000.0,0.00014247,2]
[403729744,1769513442784,-1000.0,0.00014247,2]
[403729746,1769513442793,-1000.0,0.00014247,2]
[403729748,1769513442801,-498.54806363,0.00014247,2]
[403729750,1769513442810,-1000.0,0.00014247,2]
[403729752,1769513442819,-151.0,0.000143,2]
[403729754,1769513442828,-151.0,0.000143,2]
[403729756,1769513442836,-308.0149166,0.00014312,2]
[403729758,1769513442846,-1500.0,0.00014368,2]
[403729760,1769513442855,-1500.0,0.00014368,2]
[403729762,1769513442865,-1500.0,0.00014368,2]
[403729764,1769513442874,-1500.0,0.00014368,2]
[403729766,1769513442883,-1500.0,0.00014368,2]
[403729768,1769513442892,-1500.0,0.00014368,2]
[403729770,1769513442901,-1500.0,0.00014368,2]
[403729772,1769513442910,-1500.0,0.00014368,2]
[403729774,1769513442920,-1333.60544809,0.00014368,2]
[403729776,1769513442929,-1500.0,0.00014368,2]
[403729778,1769513442938,-1500.0,0.00014368,2]
[403729780,1769513442947,-504.79261489,0.00014368,2]
[403729782,1769513442956,-1500.0,0.00014368,2]
[403729793,1769513443086,-500.0,0.00014369,2]
[403729795,1769513443095,-500.0,0.00014369,2]
[403729797,1769513443104,-500.0,0.00014369,2]
[403729799,1769513443114,-500.0,0.00014476,2]
[403729801,1769513443123,-864.0,0.00014484,2]
[403729803,1769513443132,-500.0,0.00014506,2]
[403729805,1769513443145,-500.0,0.00014506,2]
[403729807,1769513443153,-500.0,0.00014506,2]
[403729809,1769513443163,-500.0,0.00014643,2]
[403729811,1769513443172,-500.0,0.00014643,2]
[403729813,1769513443182,-500.0,0.00014643,2]
[403729815,1769513443191,-151.0,0.000147,2]
[403729818,1769513443200,-354.17373629,0.0001475,2]
[403729821,1769513443210,-900.0,0.00014768,2]
[403729824,1769513443220,-500.0,0.0001478,2]
[403729827,1769513443229,-500.0,0.0001478,2]
[403729829,1769513443238,-500.0,0.0001478,2]
[403729831,1769513443246,-933.66109963,0.00014795,2]
[403729833,1769513443255,-476.55877196,0.00014795,2]
[403729835,1769513443264,-1500.0,0.00014795,2]
[403729837,1769513443273,-1500.0,0.00014795,2]
[403729839,1769513443282,-484.5242166,0.00014795,2]
[403729841,1769513443290,-175.70742984,0.00014795,2]
[403729843,1769513443299,-1500.0,0.00014795,2]
[403729844,1769513443308,-301.56130493,0.00014795,2]
[403729846,1769513443317,-1532.3582484,0.00014795,2]
[403729848,1769513443326,-1500.0,0.00014795,2]
[403729850,1769513443335,-336.4468968,0.00014795,2]
[403729852,1769513443345,-944.83278886,0.00014795,2]
[403729854,1769513443354,-1500.0,0.00014795,2]
[403729857,1769513443364,-1500.0,0.00014795,2]
[403729859,1769513443376,-1500.0,0.00014795,2]
[403729861,1769513443386,-1508.31156326,0.00014795,2]
[403729863,1769513443396,-2000.0,0.00014916,2]
[403729865,1769513443404,-2000.0,0.00014916,2]
[403729867,1769513443413,-2000.0,0.00014916,2]
[403729868,1769513443422,-2000.0,0.00014916,2]
[403729870,1769513443431,-2000.0,0.00014916,2]
[403729872,1769513443440,-2000.0,0.00014916,2]
[403729874,1769513443449,-2000.0,0.00014916,2]
[403729876,1769513443458,-2000.0,0.00014916,2]
[403729878,1769513443467,-2000.0,0.00014916,2]
[403729880,1769513443475,-2000.0,0.00014916,2]
[403729882,1769513443484,-2000.0,0.00014916,2]
[403729884,1769513443493,-500.0,0.00014917,2]
[403729886,1769513443502,-500.0,0.00014917,2]
[403729888,1769513443510,-500.0,0.00014917,2]
[403729890,1769513443519,-5000.0,0.00015,2]
[403729892,1769513443528,-1837.9324731,0.00015,2]
[403729894,1769513443537,-1374.32636914,0.00015,2]
[403729896,1769513443546,-151.0,0.00015,2]
[403729898,1769513443555,-419.63216851,0.00015054,2]
[403729900,1769513443564,-500.0,0.00015054,2]
[403729902,1769513443572,-355.45611552,0.00015054,2]
[403729904,1769513443581,-318.921225,0.00015068,2]
[403729906,1769513443590,-274.46400997,0.0001515,20]
[403729908,1769513443599,-500.0,0.00015191,2]
[403729910,1769513443607,-1200.0,0.00015316,2]
[403729912,1769513443616,-356.10404976,0.00015328,2]
[403729914,1769513443625,-2194.25,0.00015342,2]
[403729916,1769513443635,-500.0,0.00015342,2]
[403729918,1769513443643,-2000.0,0.00015342,2]
[403729920,1769513443652,-2000.0,0.00015342,2]
[403729922,1769513443661,-2000.0,0.00015342,2]
[403729924,1769513443670,-1886.16038037,0.00015342,2]
[403729926,1769513443678,-2000.0,0.00015342,2]
[403729928,1769513443687,-2000.0,0.00015342,2]
[403729930,1769513443696,-518.24059749,0.00015389,2]
[403729932,1769513443705,-588.44180529,0.000154,2]
[403729934,1769513443714,-730479.1855924,0.000154,2]
[403729936,1769513443723,-250.0,0.00015455,2]
[403729938,1769513443732,-500.0,0.00015464,2]
[403729940,1769513443742,-500.0,0.00015464,2]
[403729942,1769513443750,-2500.0,0.00015464,2]
[403729944,1769513443759,-2500.0,0.00015464,2]
[403729946,1769513443768,-2500.0,0.00015464,2]
[403729948,1769513443777,-2500.0,0.00015464,2]
[403729950,1769513443788,-2500.0,0.00015464,2]
[403729952,1769513443797,-2500.0,0.00015464,2]
[403729954,1769513443807,-2500.0,0.00015464,2]
[403729956,1769513443817,-2500.0,0.00015464,2]
[403729958,1769513443826,-2500.0,0.00015464,2]
[403729960,1769513443835,-2500.0,0.00015464,2]
[403729962,1769513443844,-948.22561692,0.00015464,2]
[403729964,1769513443853,-823.0,0.00015538,2]
[403729966,1769513443863,-1572.69,0.00015559,2]
[403729968,1769513443872,-9597.033842,0.00015559,7]
[403729970,1769513443881,-1932.46060126,0.0001564,2]
[403729972,1769513443890,-179.9820018,0.00015739,2]
[403729974,1769513443899,-30000.0,0.00015799,2]
[403729976,1769513443908,-250.0,0.00015799,2]
[403729978,1769513443917,-250.0,0.00015799,2]
[403729980,1769513443926,-250.0,0.00015799,2]
[403729982,1769513443935,-250.0,0.00015799,2]
[403729984,1769513443944,-250.0,0.00015799,2]
[403729986,1769513443953,-250.0,0.00015799,2]
[403729988,1769513443962,-250.0,0.00015799,2]
[403729990,1769513443972,-250.0,0.00015799,2]
[403729992,1769513443981,-500.0,0.00015799,2]
[403729994,1769513443990,-151.0,0.00015799,2]
[403729996,1769513443998,-162.380719,0.00015799,2]
[403729998,1769513444007,-250.00000003,0.00015799,2]
[403730000,1769513444016,-151.0,0.00015799,2]
[403730002,1769513444025,-151.0,0.00015799,2]
[403730004,1769513444034,-2674.60743027,0.00015799,2]
[403730006,1769513444043,-151.0,0.00015799,2]
[403730008,1769513444051,-184.79370696,0.00015799,2]
[403730009,1769513444060,-500.0,0.00015801,2]
[403730011,1769513444069,-197.102959,0.00015801,7]
[403730013,1769513444078,-886.715831,0.00015864,7]
[403730014,1769513444087,-1500.0,0.00015864,2]
[403730015,1769513444096,-2500.0,0.0001589,2]
[403730016,1769513444105,-2140.715749,0.0001589,7]
[403730017,1769513444114,-2500.0,0.0001589,2]
[403730018,1769513444124,-2500.0,0.0001589,2]
[403730019,1769513444141,-2500.0,0.0001589,2]
[403730020,1769513444152,-538.71956343,0.0001589,2]
[403730021,1769513444161,-173.7988727,0.00015918,2]
[403730022,1769513444171,-61074.5326244,0.00015918,2]
[403730023,1769513444181,-789.055513,0.00015918,7]
[403730024,1769513444189,-1000.0,0.00015933,2]
[403730025,1769513444199,-3000.0,0.00016012,2]
[403730026,1769513444211,-3000.0,0.00016012,2]
[403730027,1769513444220,-1660.41327999,0.00016012,2]
[403730028,1769513444229,-3000.0,0.00016012,2]
[403730029,1769513444238,-3000.0,0.00016012,2]
[403730030,1769513444247,-3000.0,0.00016012,2]
[403730031,1769513444256,-3000.0,0.00016012,2]